bitfinex-derivatives/quotes_SOLF0:USTF0_20240920
["timestamp","ask_amount","ask_price","bid_price","bid_amount"]
[1726818086059,1.7876,150.51,150.36,136.30035643]
[1726818086359,3.3224,150.49,150.47,10.22]
[1726818086550,3.3224,150.49,150.47,13.54923364]
[1726818086753,1.7876,150.51,150.48,10.22]
[1726818087156,3.322,150.5,150.48,10.22]
[1726818087358,1.7876,150.51,150.48,10.22]
[1726818087561,1.7876,150.51,150.36,136.30035643]
[1726818087755,10.22,150.49,150.44,10.22]
[1726818088151,10.22,150.46,150.36,136.30035643]
[1726818088351,1.7876,150.51,150.41,10.22]
[1726818088558,10.22,150.46,150.41,10.22]
[1726818088759,10.22,150.46,150.42,10.22]
[1726818088961,10.22,150.47,150.42,10.22]
[1726818089664,3.3234,150.44,150.42,10.22]
[1726818090857,3.3236,150.43,150.42,10.22]
[1726818091058,10.22,150.47,150.42,10.22]
[1726818092065,10.22,150.43,150.36,3.28035643]
[1726818092360,10.22,150.43,150.35,110.16542271]
[1726818092361,10.22,150.43,150.38,10.22]
[1726818092664,1.7281,150.46,150.36,13.61750538]
[1726818092665,3.3247,150.38,150.36,13.61750538]
[1726818092872,1.6594,150.42,150.35,110.16542271]
[1726818092873,1.6594,150.42,150.37,10.22]
[1726818093165,1.6594,150.42,150.39,10.22]
[1726818093361,1.6594,150.42,150.37,10.22]
[1726818093562,10.22,150.41,150.37,10.22]
[1726818093962,3.3243,150.4,150.38,10.22]
[1726818094259,1.6594,150.42,150.38,10.22]
[1726818094464,3.3244,150.4,150.38,10.22]
[1726818095261,3.3242,150.41,150.39,10.22]
[1726818095464,1.8419,150.45,150.4,10.22]
[1726818095965,3.4809,150.46,150.44,10.22]
[1726818096265,3.3231,150.45,150.44,10.22]
[1726818096458,3.4809,150.46,150.44,10.22]
[1726818096960,6.804,150.46,150.44,10.22]
[1726818097165,3.4809,150.46,150.44,10.22]
[1726818097565,3.4809,150.46,150.4,3.3243]
[1726818097863,10.22,150.45,150.41,10.22]
[1726818098066,3.4809,150.46,150.38,15.96]
[1726818098258,3.4809,150.46,150.36,15.96]
[1726818098463,1.7342,150.45,150.36,15.96]
[1726818098761,3.3245,150.39,150.36,19.2851]
[1726818099265,1.7342,150.45,150.36,19.2851]
[1726818099658,1.7342,150.45,150.36,15.96]
[1726818100366,3.3242,150.41,150.37,3.3248]
[1726818101764,3.3239,150.42,150.38,19.2847]
[1726818104171,3.324,150.41,150.38,15.96]
[1726818104562,1.7342,150.45,150.36,15.96]
[1726818104769,1.7342,150.45,150.35,113.54188625]
[1726818104770,15.96,150.44,150.35,113.54188625]
[1726818105271,3.3249,150.37,150.35,113.54188625]
[1726818105571,15.96,150.44,150.35,113.54188625]
[1726818105767,3.3247,150.38,150.35,113.54188625]
[1726818106772,3.3247,150.38,150.35,116.86718625]
[1726818108569,1.7342,150.45,150.35,116.86718625]
[1726818108570,1.7342,150.45,150.36,19.2851]
[1726818108768,1.7342,150.45,150.38,15.96]
[1726818108973,1.7342,150.45,150.35,113.54188625]
[1726818108974,1.7342,150.45,150.4,15.96]
[1726818109983,3.3235,150.44,150.4,19.2842]
[1726818110679,1.7342,150.45,150.4,19.2842]
[1726818110877,1.7342,150.45,150.4,15.96]
[1726818111884,3.324,150.42,150.38,19.2845]
[1726818112074,3.324,150.42,150.38,15.96]
[1726818112680,3.324,150.41,150.38,15.96]
[1726818112881,1.7342,150.45,150.38,15.96]
[1726818113179,3.3239,150.42,150.38,19.2847]
[1726818113386,1.7342,150.45,150.38,15.96]
[1726818114275,1.7342,150.45,150.38,19.2847]
[1726818114477,1.7342,150.45,150.38,15.96]
[1726818114680,17.6942,150.45,150.36,19.2851]
[1726818115684,3.3244,150.4,150.36,19.2851]
[1726818117491,3.3245,150.39,150.36,15.96]
[1726818117788,17.6942,150.45,150.36,15.96]
[1726818118591,3.3243,150.4,150.36,19.285]
[1726818121390,1.7342,150.45,150.38,15.96]
[1726818122087,3.4809,150.46,150.4,15.96]
[1726818122287,3.4809,150.46,150.35,113.54188625]
[1726818122288,3.4809,150.46,150.42,15.96]
[1726818122591,1.7974,150.55,150.42,15.96]
[1726818122793,15.96,150.49,150.4,15.96]
[1726818122985,3.5452,150.48,150.4,15.96]
[1726818123184,3.5452,150.48,150.38,15.96]
[1726818123789,3.3238,150.43,150.39,3.3243]
[1726818124190,3.3238,150.43,150.38,15.96]
[1726818124786,3.3238,150.43,150.39,3.3244]
[1726818127694,3.3234,150.44,150.4,3.3242]
[1726818128187,3.5452,150.48,150.4,19.2842]
[1726818128394,3.5452,150.48,150.41,3.324]
[1726818128891,3.5452,150.48,150.4,19.2841]
[1726818129288,3.5452,150.48,150.4,15.96]
[1726818129484,3.5452,150.48,150.41,3.324]
[1726818131894,3.3237,150.43,150.4,15.96]
[1726818132097,3.5452,150.48,150.4,15.96]
[1726818132299,15.96,150.47,150.38,15.96]
[1726818133192,3.3243,150.4,150.38,15.96]
[1726818134094,3.3243,150.4,150.36,19.2851]
[1726818134394,3.3243,150.4,150.36,15.96]
[1726818134596,3.3241,150.41,150.37,3.3249]
[1726818134995,1.6936,150.44,150.38,15.96]
[1726818135398,3.3238,150.42,150.38,19.2845]
[1726818136398,3.3237,150.43,150.39,3.3245]
[1726818136599,3.3237,150.43,150.35,113.54188625]
[1726818136600,3.5452,150.48,150.4,15.96]
[1726818137599,6.81025424,150.48,150.4,15.96]
[1726818137800,15.96,150.47,150.38,19.2846]
[1726818138000,15.96,150.47,150.38,15.96]
[1726818138395,15.96,150.47,150.39,3.3244]
[1726818138996,3.324,150.42,150.38,19.2846]
[1726818139398,3.3238,150.42,150.39,3.3243]
[1726818140507,3.3238,150.42,150.38,19.2846]
[1726818141609,3.324,150.41,150.38,19.2846]
[1726818141902,15.96,150.47,150.38,19.2846]
[1726818143008,3.324,150.42,150.38,19.2846]
[1726818143310,15.96,150.47,150.38,19.2846]
[1726818143609,3.324,150.42,150.38,19.2846]
[1726818144105,3.324,150.41,150.38,19.2846]
[1726818145911,3.324,150.41,150.4,10.21]
[1726818146906,10.21,150.42,150.35,113.54188625]
[1726818147205,10.21,150.39,150.35,110.16542271]
[1726818147410,1.8404,150.44,150.36,10.21]
[1726818147605,3.5452,150.48,150.41,10.21]
[1726818147808,13.7552,150.48,150.43,10.21]
[1726818148013,3.3231,150.46,150.43,10.21]
[1726818148715,3.3232,150.45,150.43,10.21]
[1726818149511,3.5452,150.48,150.44,10.21]
[1726818150012,3.323,150.46,150.44,10.21]
[1726818150712,3.3231,150.45,150.44,10.21]
[1726818151115,3.3231,150.45,150.43,10.21]
[1726818151414,3.3237,150.43,150.39,3.3243]
[1726818151714,3.3237,150.43,150.36,7.49830217]
[1726818151914,3.3237,150.43,150.41,10.21]
[1726818152911,3.3238,150.42,150.41,10.21]
[1726818154318,10.21,150.45,150.39,10.21]
[1726818156215,3.324,150.42,150.39,10.21]
[1726818156615,10.21,150.45,150.39,10.21]
[1726818158213,3.3239,150.42,150.39,10.21]
[1726818158410,10.21,150.46,150.4,13.5342]
[1726818159317,3.3236,150.43,150.4,13.5342]
[1726818159516,3.3236,150.43,150.42,10.21]
[1726818166125,3.5452,150.48,150.42,10.21]
[1726818166321,1.8404,150.49,150.47,10.21]
[1726818166816,3.3226,150.48,150.47,10.21]
[1726818167021,3.3226,150.48,150.46,10.21]
[1726818168328,3.3227,150.47,150.46,10.21]
[1726818168524,1.8404,150.49,150.45,10.21]
[1726818169831,3.3229,150.47,150.45,10.21]
[1726818170527,3.3229,150.46,150.45,10.21]
[1726818175132,1.6715,150.53,150.45,10.21]
[1726818175133,3.3227,150.48,150.45,10.21]
[1726818175335,3.3227,150.48,150.47,10.21]
[1726818177630,3.3227,150.48,150.46,10.21]
[1726818180032,3.3227,150.47,150.46,10.21]
[1726818181134,3.3229,150.46,150.41,3.29996927]
[1726818181330,10.21,150.49,150.43,10.21]
[1726818181530,10.21,150.49,150.44,10.21]
[1726818181928,10.21,150.51,150.46,10.21]
[1726818182637,10.21,150.51,150.47,10.21]
[1726818184035,3.3225,150.48,150.47,10.21]
[1726818184436,1.6715,150.53,150.44,10.21]
[1726818184632,3.3231,150.46,150.44,10.21]
[1726818185530,3.3228,150.47,150.45,10.21]
[1726818185731,10.21,150.51,150.46,10.21]
[1726818186329,1.6715,150.53,150.48,10.21]
[1726818187337,3.322,150.51,150.48,10.21]
[1726818187930,1.6715,150.53,150.5,10.21]
[1726818188131,1.8403,150.55,150.51,10.21]
[1726818188436,3.3211,150.55,150.51,13.5318]
[1726818188938,10.21,150.57,150.51,10.21]
[1726818189132,3.3214,150.53,150.51,10.21]
[1726818191237,10.21,150.56,150.51,10.21]
[1726818191836,3.3216,150.52,150.51,10.21]
[1726818193042,3.3215,150.53,150.51,10.21]
[1726818195036,10.21,150.56,150.51,10.21]
[1726818195245,10.21,150.56,150.52,10.21]
[1726818195538,3.6199,150.61,150.54,10.21]
[1726818195740,3.3209,150.55,150.54,10.21]
[1726818197443,3.3208,150.56,150.54,10.21]
[1726818197644,3.3208,150.56,150.55,10.21]
[1726818198142,3.3205,150.57,150.55,10.21]
[1726818198341,3.3205,150.57,150.56,10.21]
[1726818199138,3.3208,150.56,150.55,10.21]
[1726818199336,10.21,150.58,150.52,3.3214]
[1726818199538,10.21,150.58,150.54,10.21]
[1726818200234,3.6199,150.61,150.55,10.21]
[1726818200439,13.8299,150.61,150.56,10.21]
[1726818200843,3.3208,150.56,150.55,10.21]
[1726818201943,10.21,150.59,150.55,10.21]
[1726818202740,3.3207,150.56,150.55,10.21]
[1726818208351,3.3207,150.56,150.55,13.58109142]
[1726818208547,3.321,150.55,150.49,132.92]
[1726818208748,3.6199,150.61,150.53,10.21]
[1726818208949,10.21,150.58,150.53,10.21]
[1726818209148,3.3211,150.55,150.53,10.21]
[1726818211751,10.21,150.55,150.48,132.9]
[1726818211959,10.21,150.52,150.48,143.11]
[1726818212857,3.3219,150.51,150.48,143.11]
[1726818213055,3.3219,150.51,150.49,10.21]
[1726818214357,3.322,150.5,150.49,10.21]
[1726818214551,10.21,150.51,150.48,132.9]
[1726818214752,10.21,150.51,150.47,10.21]
[1726818214959,3.3224,150.49,150.47,10.21]
[1726818215156,1.7782,150.55,150.41,132.92]
[1726818215157,10.21,150.5,150.41,132.92]
[1726818215356,10.21,150.5,150.45,10.21]
[1726818216763,3.3226,150.48,150.45,10.21]
[1726818218455,3.3228,150.47,150.45,10.21]
[1726818218664,10.21,150.51,150.46,10.21]
[1726818219163,3.3225,150.48,150.46,10.21]
[1726818219673,10.21,150.51,150.44,110.09461435]
[1726818219970,10.21,150.51,150.46,10.21]
[1726818220361,3.3224,150.49,150.48,10.21]
[1726818220564,10.21,150.53,150.48,10.21]
[1726818220859,3.3218,150.52,150.51,10.21]
[1726818221069,11.9882,150.55,150.5,10.21]
[1726818221958,11.9882,150.55,150.44,110.09461435]
[1726818222161,10.21,150.53,150.48,10.21]
[1726818222357,10.21,150.52,150.46,10.21]
[1726818222559,1.7299,150.51,150.46,10.21]
[1726818222759,3.3227,150.48,150.46,10.21]
[1726818225268,10.21,150.49,150.44,110.09461435]
[1726818225468,6.80524413,150.51,150.41,132.92]
[1726818225673,10.21,150.46,150.41,143.13]
[1726818226071,10.21,150.46,150.41,132.92]
[1726818227172,3.3237,150.43,150.41,143.13]
[1726818229180,3.3237,150.43,150.41,10.21]
[1726818229477,3.3238,150.42,150.41,10.21]
[1726818232977,10.21,150.47,150.41,10.21]
[1726818233178,10.21,150.47,150.42,10.21]
[1726818234181,1.782,150.46,150.42,10.21]
[1726818234577,3.3238,150.42,150.41,10.21]
[1726818236979,1.782,150.46,150.39,3.29653803]
[1726818237182,1.782,150.46,150.42,10.21]
[1726818237183,1.8195,150.45,150.42,10.21]
[1726818237682,3.3236,150.43,150.42,10.21]
[1726818238880,3.3239,150.42,150.41,10.21]
[1726818240185,10.21,150.44,150.39,10.21]
[1726818240686,3.3245,150.39,150.38,10.21]
[1726818241483,10.21,150.4,150.33,136.24777972]
[1726818241984,3.3253,150.36,150.34,10.21]
[1726818242786,1.8195,150.45,150.35,10.21]
[1726818243089,10.21,150.41,150.36,10.21]
[1726818243384,3.3248,150.38,150.36,10.21]
[1726818244688,3.3249,150.37,150.36,10.21]
[1726818245490,3.3251,150.36,150.35,10.21]
[1726818245681,13.6271,150.4,150.33,3.28777972]
[1726818245877,13.6271,150.4,150.34,10.21]
[1726818246289,3.3253,150.36,150.34,10.21]
[1726818246788,10.21,150.37,150.32,110.17921237]
[1726818246982,10.21,150.37,150.32,120.38921237]
[1726818247189,10.21,150.37,150.32,10.21]
[1726818247383,10.21,150.36,150.32,10.21]
[1726818247782,10.21,150.37,150.32,10.21]
[1726818248183,3.3258,150.33,150.32,10.21]
[1726818248688,10.21,150.37,150.29,3.3265]
[1726818248890,10.21,150.37,150.31,10.21]
[1726818249086,10.21,150.33,150.28,133.0]
[1726818249586,10.21,150.3,150.25,10.21]
[1726818249886,3.4966,150.32,150.2,1.8583]
[1726818250092,3.3275,150.26,150.24,10.21]
[1726818250387,1.6661,150.31,150.2,3.2632483]
[1726818250688,10.21,150.28,150.23,10.21]
[1726818250992,1.6661,150.31,150.19,133.04]
[1726818250993,10.21,150.3,150.25,10.21]
[1726818251184,11.8761,150.31,150.26,10.21]
[1726818251388,3.3268,150.29,150.26,10.21]
[1726818251989,3.327,150.28,150.24,15.97]
[1726818252789,1.6661,150.31,150.23,15.97]
[1726818252993,17.6361,150.31,150.23,15.97]
[1726818253789,3.3275,150.26,150.21,3.3283]
[1726818254989,3.3277,150.25,150.21,3.3283]
[1726818255396,3.3274,150.26,150.22,3.3282]
[1726818256193,3.3276,150.25,150.21,3.3284]
[1726818256892,15.97,150.3,150.2,15.97]
[1726818257483,3.3276,150.25,150.21,3.3283]
[1726818258293,3.3273,150.27,150.23,3.328]
[1726818258489,3.3273,150.27,150.23,19.298]
[1726818258992,3.3274,150.26,150.23,19.298]
[1726818259301,3.3274,150.26,150.23,15.97]
[1726818261383,3.3276,150.25,150.21,19.2984]
[1726818261894,1.6661,150.31,150.21,15.97]
[1726818261895,3.3278,150.24,150.21,15.97]
[1726818262090,3.3278,150.24,150.21,19.369913]
[1726818262284,15.97,150.3,150.21,15.97]
[1726818262488,1.6661,150.31,150.21,15.97]
[1726818262687,15.97,150.29,150.21,15.97]
[1726818263897,3.328,150.24,150.21,15.97]
[1726818264194,1.6661,150.31,150.21,15.97]
[1726818264397,15.97,150.29,150.21,15.97]
[1726818265001,3.3279,150.24,150.21,15.97]
[1726818265192,15.97,150.29,150.21,15.97]
[1726818266295,3.3279,150.24,150.21,15.97]
[1726818266792,3.3282,150.23,150.21,15.97]
[1726818267002,3.3282,150.23,150.2,3.29571514]
[1726818267198,3.3282,150.23,150.19,15.97]
[1726818267601,1.6661,150.31,150.19,19.2989]
[1726818267799,1.6661,150.31,150.2,3.39814187]
[1726818267800,15.97,150.28,150.2,3.39814187]
[1726818267998,3.3283,150.22,150.2,3.39814187]
[1726818269096,3.3281,150.23,150.2,3.39814187]
[1726818269902,3.3283,150.22,150.2,3.39814187]
[1726818272005,3.3283,150.22,150.2,13.62814187]
[1726818272202,10.23,150.25,150.2,3.39814187]
[1726818272507,1.6661,150.31,150.24,10.23]
[1726818272701,1.6661,150.31,150.27,10.23]
[1726818273598,1.6661,150.31,150.28,10.23]
[1726818273799,1.6661,150.31,150.24,3.34210175]
[1726818274105,1.6661,150.31,150.26,15.98]
[1726818274306,3.3268,150.29,150.26,15.98]
[1726818274997,3.327,150.28,150.26,15.98]
[1726818275600,1.6661,150.31,150.26,15.98]
[1726818275803,1.6661,150.31,150.25,3.36639212]
[1726818276001,1.6661,150.31,150.24,15.98]
[1726818276400,3.3271,150.28,150.24,19.3077]
[1726818276703,3.3271,150.28,150.25,3.40899204]
[1726818277301,3.3273,150.26,150.25,3.40899204]
[1726818277499,1.6661,150.31,150.25,3.40899204]
[1726818278199,3.3271,150.28,150.25,3.40899204]
[1726818278698,3.3272,150.27,150.25,3.40899204]
[1726818278995,1.6661,150.31,150.25,3.40899204]
[1726818280400,3.327,150.28,150.25,3.40899204]
[1726818280599,17.6461,150.31,150.22,15.98]
[1726818280810,15.98,150.29,150.2,15.98]
[1726818281107,3.3278,150.24,150.2,19.3085]
[1726818281604,15.98,150.28,150.18,152.469]
[1726818282205,3.3282,150.23,150.19,3.3289]
[1726818284004,3.3276,150.25,150.2,19.3086]
[1726818285808,3.3276,150.25,150.21,3.3284]
[1726818286804,3.3278,150.24,150.21,3.3284]
[1726818287007,3.3278,150.24,150.2,19.3087]
[1726818287808,15.98,150.29,150.2,15.98]
[1726818288211,15.98,150.29,150.2,19.3087]
[1726818289611,3.328,150.24,150.2,19.3087]
[1726818294021,3.328,150.24,150.22,10.22]
[1726818294821,3.328,150.23,150.22,10.22]
[1726818295525,3.3278,150.24,150.22,10.22]
[1726818298127,3.328,150.23,150.19,3.3287]
[1726818298323,3.328,150.23,150.21,10.22]
[1726818299124,3.328,150.23,150.2,3.26829593]
[1726818299324,3.328,150.23,150.2,10.22]
[1726818299825,10.22,150.26,150.2,13.55588599]
[1726818300022,10.22,150.24,150.19,10.22]
[1726818300623,3.3282,150.22,150.19,10.22]
[1726818300823,3.3282,150.22,150.19,13.47265465]
[1726818304931,3.3282,150.22,150.19,10.22]
[1726818305926,3.3281,150.23,150.21,10.22]
[1726818307525,10.22,150.27,150.22,10.22]
[1726818308431,1.6661,150.31,150.26,10.22]
[1726818308631,10.22,150.33,150.28,10.22]
[1726818308828,133.18,150.4,150.28,10.22]
[1726818309131,10.22,150.35,150.31,10.22]
[1726818309338,3.509,150.39,150.31,10.22]
[1726818309635,10.22,150.37,150.32,10.22]
[1726818310230,10.22,150.37,150.32,13.5459]
[1726818310430,10.22,150.37,150.32,10.22]
[1726818311335,3.3256,150.35,150.32,10.22]
[1726818311732,10.22,150.36,150.31,10.22]
[1726818312735,3.3257,150.34,150.31,10.22]
[1726818315436,10.22,150.36,150.31,10.22]
[1726818316541,3.3258,150.34,150.31,10.22]
[1726818317434,3.3258,150.34,150.32,10.22]
[1726818317637,3.3254,150.35,150.32,10.22]
[1726818318933,13.729,150.39,150.34,10.22]
[1726818319332,17.0536,150.39,150.35,3.3253]
[1726818319530,3.509,150.39,150.35,10.22]
[1726818321940,3.325,150.37,150.35,10.22]
[1726818322544,3.325,150.37,150.36,10.22]
[1726818322740,3.3248,150.38,150.36,10.22]
[1726818324341,5.101,150.39,150.36,10.22]
[1726818325038,3.3248,150.38,150.36,10.22]
[1726818325444,1.7764,150.39,150.36,10.22]
[1726818326745,1.7764,150.39,150.34,3.26811738]
[1726818326946,10.22,150.38,150.34,10.22]
[1726818327147,10.22,150.38,150.34,13.57073933]
[1726818327848,3.3251,150.37,150.35,10.22]
[1726818328438,3.3251,150.37,150.36,10.22]
[1726818329143,1.7764,150.39,150.36,10.22]
[1726818329539,10.22,150.41,150.36,10.22]
[1726818329841,3.3246,150.39,150.36,10.22]
[1726818330147,10.22,150.41,150.36,10.22]
[1726818331244,3.3248,150.38,150.36,10.22]
[1726818333053,1.7151,150.42,150.35,10.22]
[1726818333054,10.22,150.4,150.35,10.22]
[1726818334051,3.3251,150.36,150.35,10.22]
[1726818334643,3.325,150.37,150.35,10.22]
[1726818335343,3.3247,150.38,150.36,10.22]
[1726818335543,3.3247,150.38,150.34,6.60462293]
[1726818335544,3.3247,150.38,150.37,10.22]
[1726818336049,3.3245,150.39,150.37,10.22]
[1726818336244,3.3245,150.39,150.38,10.22]
[1726818344154,1.7151,150.42,150.38,10.22]
[1726818345256,3.3245,150.39,150.38,10.22]
[1726818346455,1.7151,150.42,150.38,10.22]
[1726818347052,3.3245,150.39,150.38,10.22]
[1726818347955,3.3236,150.43,150.38,10.22]
[1726818348159,3.3236,150.43,150.41,10.22]
[1726818348361,10.22,150.47,150.41,10.22]
[1726818348556,3.4277,150.49,150.44,10.22]
[1726818348856,3.4277,150.49,150.46,10.22]
[1726818349062,3.4277,150.49,150.44,10.22]
[1726818349261,13.6477,150.49,150.37,113.55306315]
[1726818349461,3.3237,150.43,150.39,3.3244]
[1726818349662,3.3237,150.43,150.42,10.22]
[1726818349863,10.22,150.47,150.37,113.55306315]
[1726818350058,3.3238,150.42,150.41,10.22]
[1726818350258,10.22,150.43,150.38,10.22]
[1726818350562,3.4277,150.49,150.38,10.22]
[1726818350563,10.22,150.44,150.38,10.22]
[1726818350860,10.22,150.44,150.39,10.22]
[1726818351260,3.324,150.42,150.39,10.22]
[1726818351862,3.3241,150.41,150.39,10.22]
[1726818353160,3.3241,150.41,150.4,10.22]
[1726818353771,3.3239,150.42,150.4,10.22]
[1726818353972,3.3239,150.42,150.41,10.22]
[1726818354174,10.22,150.46,150.41,10.22]
[1726818354374,3.4277,150.49,150.43,10.22]
[1726818354573,10.22,150.47,150.43,10.22]
[1726818354876,3.4277,150.49,150.43,10.22]
[1726818355070,10.22,150.47,150.43,10.22]
[1726818355271,3.4277,150.49,150.37,113.55306315]
[1726818355573,3.4277,150.49,150.47,10.22]
[1726818355768,3.3225,150.48,150.47,10.22]
[1726818356370,1.7081,150.49,150.47,10.22]
[1726818357175,3.3223,150.49,150.47,10.22]
[1726818358874,3.3225,150.48,150.47,10.22]
[1726818359271,13.6077,150.53,150.47,10.22]
[1726818359877,3.3224,150.49,150.47,10.22]
[1726818360269,3.3877,150.53,150.48,10.22]
[1726818360470,3.3877,150.53,150.5,10.22]
[1726818360868,3.322,150.51,150.5,10.22]
[1726818361073,3.3877,150.53,150.48,10.22]
[1726818361270,13.6077,150.53,150.48,10.22]
[1726818362279,10.22,150.52,150.48,10.22]
[1726818362781,3.3223,150.49,150.48,10.22]
[1726818363277,3.3223,150.49,150.41,1.8502]
[1726818363478,3.3223,150.49,150.47,10.22]
[1726818366678,3.3223,150.49,150.48,10.22]
[1726818367179,3.3221,150.5,150.48,10.22]
[1726818368180,3.3223,150.49,150.48,10.22]
[1726818368776,3.3877,150.53,150.41,1.8502]
[1726818368980,10.22,150.49,150.44,10.22]
[1726818369280,3.3877,150.53,150.44,10.22]
[1726818369478,10.22,150.47,150.4,133.0]
[1726818369679,10.22,150.46,150.41,10.22]
[1726818369880,3.3232,150.45,150.42,10.22]
[1726818370079,3.3232,150.45,150.44,10.22]
[1726818370381,3.3234,150.44,150.43,10.22]
[1726818370783,10.22,150.48,150.43,10.22]
[1726818371579,10.22,150.47,150.35,132.98]
[1726818371780,10.22,150.44,150.39,10.22]
[1726818372083,3.3237,150.43,150.4,10.22]
[1726818372679,3.3245,150.39,150.37,110.14958679]
[1726818372880,1.7169,150.46,150.35,132.98]
[1726818373284,10.22,150.38,150.33,13.53693044]
[1726818373883,15.97,150.4,150.33,3.31693044]
[1726818374879,1.7169,150.46,150.33,19.28693044]
[1726818374880,15.97,150.42,150.33,19.28693044]
[1726818375087,15.97,150.44,150.35,15.97]
[1726818375278,15.97,150.42,150.33,15.97]
[1726818375484,3.4805,150.41,150.33,19.21397069]
[1726818375982,3.4805,150.41,150.35,15.97]
[1726818376786,3.3245,150.39,150.35,22.58307555]
[1726818378187,3.3245,150.39,150.35,19.25787555]
[1726818378888,3.3248,150.38,150.35,19.25787555]
[1726818379189,3.4805,150.41,150.35,19.25787555]
[1726818380990,3.3247,150.38,150.35,19.25787555]
[1726818382793,17.6869,150.46,150.37,15.97]
[1726818382990,1.7169,150.46,150.39,15.97]
[1726818383489,3.3238,150.42,150.39,19.2943]
[1726818383690,1.7169,150.46,150.39,15.97]
[1726818383991,1.7169,150.46,150.37,15.97]
[1726818384195,1.7169,150.46,150.37,19.25477758]
[1726818384488,1.7169,150.46,150.34,3.33865366]
[1726818384694,15.97,150.43,150.34,3.33865366]
[1726818384992,3.325,150.37,150.34,3.33865366]
[1726818385393,3.3223,150.42,150.34,3.33865366]
[1726818385995,3.3247,150.39,150.34,6.66405366]
[1726818386593,3.3247,150.38,150.34,6.66405366]
[1726818386890,3.3223,150.42,150.34,3.33865366]
[1726818387895,3.3249,150.38,150.34,3.33865366]
[1726818388094,3.3223,150.42,150.34,3.33865366]
[1726818389698,3.3246,150.39,150.35,3.3253]
[1726818390596,3.3223,150.42,150.34,3.33865366]
[1726818391696,3.3249,150.38,150.34,3.33865366]
[1726818392099,3.3249,150.38,150.34,6.66425366]
[1726818392797,15.97,150.41,150.31,15.97]
[1726818392993,15.97,150.39,150.31,3.25850468]
[1726818393192,3.3258,150.33,150.29,15.97]
[1726818393793,1.7526,150.38,150.29,15.97]
[1726818393998,3.3256,150.34,150.29,19.2965]
[1726818394200,1.7526,150.38,150.29,19.2965]
[1726818394593,1.7526,150.38,150.29,15.97]
[1726818394999,1.7526,150.38,150.31,15.97]
[1726818395199,3.3254,150.35,150.31,15.97]
[1726818395703,3.3256,150.34,150.31,15.97]
[1726818396803,1.7526,150.38,150.31,15.97]
[1726818397501,3.325,150.37,150.32,3.326]
[1726818397899,1.7526,150.38,150.32,3.326]
[1726818398202,1.7526,150.38,150.34,3.3255]
[1726818398404,15.97,150.41,150.33,15.97]